Departmental Area,Entity,Payment Date,Expense type,Expense Area,Supplier Name,Payment Reference,      Invoice Distribution Amount      ,Description,Supplier Type,Expenditure Type
UK Statistics Family,Office for National Statistics,02/10/2023,Exp - Purchase Of Goods/Services - IT Contractual Services,Digital Publishing,TPXimpact Scotland Limited,280017," 71,061.00 ",Information Management Services,SME,Programme Expenditure
UK Statistics Family,Office for National Statistics,02/10/2023,Exp - Purchase Of Goods/Services - Contractors,Testing,La International,280029," 12,258.96 ",Information Management Services,SME,Programme Expenditure
UK Statistics Family,Office for National Statistics,02/10/2023,Exp - Purchase Of Goods/Services - Contractors,Testing,La International,280029," 5,573.65 ",Information Management Services,SME,Programme Expenditure
UK Statistics Family,Office for National Statistics,02/10/2023,Exp - Purchase Of Goods/Services - Contractors,Data Architecture,La International,280029," 15,250.25 ",Information Management Services,SME,Programme Expenditure
UK Statistics Family,Office for National Statistics,02/10/2023,Exp - Purchase Of Goods/Services - Contractors,Data Architecture,La International,280029," 7,168.28 ",Information Management Services,SME,Programme Expenditure
UK Statistics Family,Office for National Statistics,02/10/2023,Exp - Purchase Of Goods/Services - Contractors,IT Applications,La International,280029," 9,162.36 ",Information Management Services,SME,Programme Expenditure
UK Statistics Family,Office for National Statistics,02/10/2023,Exp - Purchase Of Goods And Services Consultants,Internal Audit,Ernst & Young LLP,280032," 32,569.50 ",Consultancy Services,Large,Programme Expenditure
UK Statistics Family,Office for National Statistics,02/10/2023,Training & Development,Learning And Capability,Ernst & Young LLP,280032," 2,647.50 ",Training and Educational Services,Large,Programme Expenditure
UK Statistics Family,Office for National Statistics,02/10/2023,Exp - Purchase Of Goods/Services - IT Contractual Services,CLOUD ARCHITECTURE,CTS (Cloud Technology Solutions Ltd),280041," 50,184.00 ",Information Management Services,Large,Programme Expenditure
UK Statistics Family,Office for National Statistics,02/10/2023,Exp - Purchase Of Goods/Services - IT Contractual Services,CDIO UNGP,CTS (Cloud Technology Solutions Ltd),280041," 81,000.00 ",Information Management Services,Large,Programme Expenditure
UK Statistics Family,Office for National Statistics,02/10/2023,Exp - Purchase Of Goods/Services - IT Contractual Services,CDIO UNGP,CTS (Cloud Technology Solutions Ltd),280041," 111,428.80 ",Information Management Services,Large,Programme Expenditure
UK Statistics Family,Office for National Statistics,02/10/2023,Exp - Purchase Of Goods/Services - Incentive Payments,Interviewer Support,Pluxee UK Ltd,280048," 1,311.58 ",Survey Response Incentive Vouchers,Large,Programme Expenditure
UK Statistics Family,Office for National Statistics,02/10/2023,Surveys,Crime Statistics,Kantar Public UK Ltd.,280042," 400,429.20 ",Statistical Services,SME,Programme Expenditure
UK Statistics Family,Office for National Statistics,02/10/2023,Exp - Purchase Of Goods/Services - Incentive Payments,Interviewer Support,Pluxee UK Ltd,280048, 986.13 ,Survey Response Incentive Vouchers,Large,Programme Expenditure
UK Statistics Family,Office for National Statistics,02/10/2023,Exp - Purchase Of Goods/Services - Incentive Payments,Interviewer Support,Pluxee UK Ltd,280048," 46,851.42 ",Survey Response Incentive Vouchers,Large,Programme Expenditure
UK Statistics Family,Office for National Statistics,02/10/2023,Exp - Purchase Of Goods/Services - Incentive Payments,Interviewer Support,Pluxee UK Ltd,280048," 9,699.17 ",Survey Response Incentive Vouchers,Large,Programme Expenditure
UK Statistics Family,Office for National Statistics,02/10/2023,Exp - Purchase Of Goods/Services - Incentive Payments,GSS Strategy Delivery,Pluxee UK Ltd,280048, 64.15 ,Survey Response Incentive Vouchers,Large,Programme Expenditure
UK Statistics Family,Office for National Statistics,02/10/2023,Exp - Purchase Of Goods/Services - Incentive Payments,Strategy And Engagement,Pluxee UK Ltd,280048, 49.34 ,Survey Response Incentive Vouchers,Large,Programme Expenditure
UK Statistics Family,Office for National Statistics,02/10/2023,Exp - Purchase Of Goods/Services - Incentive Payments,Crime Statistics,Pluxee UK Ltd,280048, 197.36 ,Survey Response Incentive Vouchers,Large,Programme Expenditure
UK Statistics Family,Office for National Statistics,02/10/2023,Exp - Purchase Of Goods/Services - Contractors,CDIO UNGP,Parity Resources Limited,280052," 4,600.50 ",Information Management Services,Large,Programme Expenditure
UK Statistics Family,Office for National Statistics,02/10/2023,Exp - Purchase Of Goods/Services - Contractors,Strategy And Architecture,Parity Resources Limited,280052," 4,500.00 ",Information Management Services,Large,Programme Expenditure
UK Statistics Family,Office for National Statistics,02/10/2023,Exp - Purchase Of Goods/Services - Contractors,IT Applications,Parity Resources Limited,280052," 3,900.00 ",Information Management Services,Large,Programme Expenditure
UK Statistics Family,Office for National Statistics,02/10/2023,Exp - Short-Term Contract & Agency Staff - Full Cost,Interviewer Management FiF,Parity Resources Limited,280052," 28,741.67 ",Information Management Services,Large,Programme Expenditure
UK Statistics Family,Office for National Statistics,02/10/2023,Exp - Purchase Of Goods/Services - Field Costs,Interviewer Management FiF,Parity Resources Limited,280052," 4,733.40 ",Information Management Services,Large,Programme Expenditure
UK Statistics Family,Office for National Statistics,02/10/2023,Exp - Short-Term Contract & Agency Staff - Full Cost,Interviewer Support,Parity Resources Limited,280052, 732.11 ,Information Management Services,Large,Programme Expenditure
UK Statistics Family,Office for National Statistics,02/10/2023,Exp - Purchase Of Goods/Services - Field Costs,Interviewer Support,Parity Resources Limited,280052, 42.12 ,Information Management Services,Large,Programme Expenditure
UK Statistics Family,Office for National Statistics,02/10/2023,EXP - PURCHASE OF GOODS/SERVICES -  NON IT CONTRACTUAL PAYMENTS,Crime Statistics,Edinburgh Innovations,280061," 71,970.00 ",Development and Feasibility Services,SME,Programme Expenditure
UK Statistics Family,Office for National Statistics,02/10/2023,Exp - Purchase Of Goods/Services - IT Contractual Services,Digital Delivery,ANDigital Limited,280063," 68,400.00 ",Information Management Services,large,Programme Expenditure
UK Statistics Family,Office for National Statistics,02/10/2023,Exp - Purchase Of Goods/Services - IT Contractual Services,Digital Delivery,ANDigital Limited,280063," 62,160.00 ",Information Management Services,large,Programme Expenditure
UK Statistics Family,Office for National Statistics,02/10/2023,Rent Payable,Property Titchfield,Government Property Agency (GPA),280064," 3,645.00 ",Property Lease,Large,Programme Expenditure
UK Statistics Family,Office for National Statistics,02/10/2023,Rent Payable,PROPERTY LONDON 2MS,Government Property Agency (GPA),280064," 154,390.75 ",Property Lease,Large,Programme Expenditure
UK Statistics Family,Office for National Statistics,02/10/2023,Other Goods And Services,PROPERTY LONDON 2MS,Government Property Agency (GPA),280064," 272,570.22 ",Property Lease,Large,Programme Expenditure
UK Statistics Family,Office for National Statistics,03/10/2023,End User Software And Hardware,IT Operations,Bytes Software Services Ltd,280325," 38,400.00 ",Software Licenses,Large,Programme Expenditure
UK Statistics Family,Office for National Statistics,03/10/2023,Exp - Purchase Of Goods/Services - Incentive Payments,Interviewer Support,Pluxee UK Ltd,280329," 22,689.91 ",Survey Response Incentive Vouchers,Large,Programme Expenditure
UK Statistics Family,Office for National Statistics,03/10/2023,Exp - Purchase Of Goods/Services - Incentive Payments,Interviewer Support,Pluxee UK Ltd,280329, 49.35 ,Survey Response Incentive Vouchers,Large,Programme Expenditure
UK Statistics Family,Office for National Statistics,03/10/2023,Exp - Purchase Of Goods/Services - Incentive Payments,Interviewer Support,Pluxee UK Ltd,280329," 5,765.51 ",Survey Response Incentive Vouchers,Large,Programme Expenditure
UK Statistics Family,Office for National Statistics,03/10/2023,Exp - Purchase Of Goods/Services - Incentive Payments,Interviewer Support,Pluxee UK Ltd,280329, 584.69 ,Survey Response Incentive Vouchers,Large,Programme Expenditure
UK Statistics Family,Office for National Statistics,03/10/2023,Exp - Purchase Of Goods/Services - Incentive Payments,Crime Statistics,Pluxee UK Ltd,280329, 49.35 ,Survey Response Incentive Vouchers,Large,Programme Expenditure
UK Statistics Family,Office for National Statistics,04/10/2023,Exp - Purchase Of Goods/Services - IT Contractual Services,CLOUD ARCHITECTURE,CTS (Cloud Technology Solutions Ltd),280583," 85,747.20 ",Information Management Services,Large,Programme Expenditure
UK Statistics Family,Office for National Statistics,04/10/2023,Exp - Purchase Of Goods/Services - Contractors,Testing,Parity Resources Limited,280586," 2,699.22 ",Information Management Services,Large,Programme Expenditure
UK Statistics Family,Office for National Statistics,04/10/2023,Exp - Purchase Of Goods/Services - Contractors,CDIO UNGP,Parity Resources Limited,280586," 4,600.50 ",Information Management Services,Large,Programme Expenditure
UK Statistics Family,Office for National Statistics,04/10/2023,Exp - Purchase Of Goods/Services - Contractors,Strategy And Architecture,Parity Resources Limited,280586," 9,000.00 ",Information Management Services,Large,Programme Expenditure
UK Statistics Family,Office for National Statistics,04/10/2023,Exp - Purchase Of Goods/Services - Contractors,IT Applications,Parity Resources Limited,280586," 3,900.00 ",Information Management Services,Large,Programme Expenditure
UK Statistics Family,Office for National Statistics,04/10/2023,Exp - Short-Term Contract & Agency Staff - Full Cost,Interviewer Management FiF,Parity Resources Limited,280586," 14,335.61 ",Information Management Services,Large,Programme Expenditure
UK Statistics Family,Office for National Statistics,04/10/2023,Exp - Purchase Of Goods/Services - Field Costs,Interviewer Management FiF,Parity Resources Limited,280586," 3,032.09 ",Information Management Services,Large,Programme Expenditure
UK Statistics Family,Office for National Statistics,04/10/2023,Exp - Purchase Of Goods/Services - IT Contractual Services,Digital Publishing,Insight Direct,280587," 31,200.00 ",Software Licenses,Large,Programme Expenditure
UK Statistics Family,Office for National Statistics,04/10/2023,"ICT Outsourcing, Maintenance And Support",DP Programme Management,Insight Direct,280587," 5,760.00 ",Information Management Services,Large,Programme Expenditure
UK Statistics Family,Office for National Statistics,04/10/2023,Office Related Goods And Services,Recruitment ,Insight Direct,280587," 4,545.76 ",Software Licenses,Large,Programme Expenditure
UK Statistics Family,Office for National Statistics,05/10/2023,Buildings Under Construction,Property Newport,Vinci Construction UK Limited,280592," 69,696.40 ",Facilities Mangement Services,Large,Programme Expenditure
UK Statistics Family,Office for National Statistics,05/10/2023,Capital Major Works >25K,Property Newport,Vinci Construction UK Limited,280592," 35,741.23 ",Facilities Mangement Services,Large,Programme Expenditure
UK Statistics Family,Office for National Statistics,05/10/2023,Specialist User Software And Hardware,Security Operations,Scc,280594," 651,836.30 ",Software Licenses,Large,Programme Expenditure
UK Statistics Family,Office for National Statistics,05/10/2023,Exp - Purchase Of Goods And Services Consultants,Internal Audit,Ernst & Young LLP,280597," 63,768.00 ",Consultancy Services,Large,Programme Expenditure
UK Statistics Family,Office for National Statistics,05/10/2023,Postage,REPROGRAPHICS,Pitney Bowes Ltd,280604," 71,763.24 ",Postage,Large,Programme Expenditure
UK Statistics Family,Office for National Statistics,10/10/2023,PPE - NON-PROPERTY (LEASED NON-PFI) - COST - ADDITIONS (AS LESSEE),IT Operations,Crown Hosting Data Centres Limited,280996," 63,069.28 ",Information Management Services,SME,Programme Expenditure
UK Statistics Family,Office for National Statistics,10/10/2023,"ICT Outsourcing, Maintenance And Support",IT Operations,Crown Hosting Data Centres Limited,280996," 2,580.00 ",Information Management Services,SME,Programme Expenditure
UK Statistics Family,Office for National Statistics,10/10/2023,Travel And Subsistence,CWT Trainline,Corporate Travel Management ,280999," 36,109.42 ",Travel and Accommodation,SME,Programme Expenditure
UK Statistics Family,Office for National Statistics,10/10/2023,Exp - Purchase Of Goods/Services - Contractors,CDIO UNGP,Certes Computing Ltd,281002," 16,467.70 ",Information Management Services,SME,Programme Expenditure
UK Statistics Family,Office for National Statistics,10/10/2023,Exp - Purchase Of Goods/Services - Contractors,Strategy And Architecture,Certes Computing Ltd,281002," 1,440.00 ",Information Management Services,SME,Programme Expenditure
UK Statistics Family,Office for National Statistics,10/10/2023,Exp - Purchase Of Goods/Services - Contractors,IT Applications,Certes Computing Ltd,281002," 13,728.58 ",Information Management Services,SME,Programme Expenditure
UK Statistics Family,Office for National Statistics,10/10/2023,Exp - Purchase Of Goods/Services - Contractors,Data Architecture,Malikshaw Interim & Executive,281007," 27,868.80 ",Information Management Services,SME,Programme Expenditure
UK Statistics Family,Office for National Statistics,10/10/2023,Exp - Purchase Of Goods/Services - Contractors,CDIO UNGP,Malikshaw Interim & Executive,281007," 16,380.00 ",Information Management Services,SME,Programme Expenditure
UK Statistics Family,Office for National Statistics,10/10/2023,Exp - Short-Term Contract & Agency Staff - Full Cost,Interviewer Management TU,Malikshaw Interim & Executive,281007," 2,735.21 ",Information Management Services,SME,Programme Expenditure
UK Statistics Family,Office for National Statistics,10/10/2023,Exp - Purchase Of Goods/Services - IT Contractual Services,DATA ENGINEERING OPERATIONS AND DELIVERY,CTS (Cloud Technology Solutions Ltd),281009," 36,842.40 ",Information Management Services,Large,Programme Expenditure
UK Statistics Family,Office for National Statistics,10/10/2023,Exp - Purchase Of Goods/Services - Incentive Payments,Interviewer Support,Pluxee UK Ltd,281010," 3,285.34 ",Survey Response Incentive Vouchers,Large,Programme Expenditure
UK Statistics Family,Office for National Statistics,10/10/2023,Exp - Purchase Of Goods/Services - Incentive Payments,Interviewer Support,Pluxee UK Ltd,281010," 3,184.29 ",Survey Response Incentive Vouchers,Large,Programme Expenditure
UK Statistics Family,Office for National Statistics,10/10/2023,Exp - Purchase Of Goods/Services - Incentive Payments,Interviewer Support,Pluxee UK Ltd,281010," 32,291.01 ",Survey Response Incentive Vouchers,Large,Programme Expenditure
UK Statistics Family,Office for National Statistics,10/10/2023,Exp - Purchase Of Goods/Services - Incentive Payments,Interviewer Support,Pluxee UK Ltd,281010," 6,089.46 ",Survey Response Incentive Vouchers,Large,Programme Expenditure
UK Statistics Family,Office for National Statistics,10/10/2023,Exp - Purchase Of Goods/Services - Incentive Payments,Interviewer Support,Pluxee UK Ltd,281010," 11,521.63 ",Survey Response Incentive Vouchers,Large,Programme Expenditure
UK Statistics Family,Office for National Statistics,10/10/2023,Exp - Permanent UK Staff - PRP Voucher Payments,ONS Corporate Funds,Edenred (UK Group) Limited,281013," 51,000.00 ",Performance Reward Vouchers,Large,Programme Expenditure
UK Statistics Family,Office for National Statistics,10/10/2023,Exp - Purchase Of Goods/Services - Contractors,Strategy And Architecture,Parity Resources Limited,281014," 24,420.90 ",Information Management Services,Large,Programme Expenditure
UK Statistics Family,Office for National Statistics,10/10/2023,Exp - Short-Term Contract & Agency Staff - Full Cost,Interviewer Management FiF,Parity Resources Limited,281014," 15,622.39 ",Information Management Services,Large,Programme Expenditure
UK Statistics Family,Office for National Statistics,10/10/2023,Exp - Purchase Of Goods/Services - Field Costs,Interviewer Management FiF,Parity Resources Limited,281014," 2,836.27 ",Information Management Services,Large,Programme Expenditure
UK Statistics Family,Office for National Statistics,10/10/2023,Exp - Short-Term Contract & Agency Staff - Full Cost,Interviewer Support,Parity Resources Limited,281014, 338.12 ,Information Management Services,Large,Programme Expenditure
UK Statistics Family,Office for National Statistics,10/10/2023,Exp - Purchase Of Goods/Services -Field Costs,Interviewer Support,Parity Resources Limited,281014, 22.86 ,Information Management Services,Large,Programme Expenditure
UK Statistics Family,Office for National Statistics,11/10/2023,Hosting,IT Operations,Crown Hosting Data Centres Limited,281160," 39,598.45 ",Information Management Services,SME,Programme Expenditure
UK Statistics Family,Office for National Statistics,11/10/2023,Surveys,"External Surveys, Research and Insights",Natcen Social Research,281161," 51,393.00 ",Survey Response Incentive Vouchers,Large,Programme Expenditure
UK Statistics Family,Office for National Statistics,11/10/2023,Buildings Under Construction,Property Newport,Vinci Construction UK Limited,281162," 42,000.00 ",Facilities Mangement Services,Large,Programme Expenditure
UK Statistics Family,Office for National Statistics,11/10/2023,IT (Owned) At Cost - Additions,IT Operations,Scc,281164," 175,834.13 ",Software Licenses,Large,Programme Expenditure
UK Statistics Family,Office for National Statistics,11/10/2023,Exp - Purchase Of Goods/Services - Contractors,CDIO UNGP,Malikshaw Interim & Executive,281169," 29,397.60 ",Information Management Services,SME,Programme Expenditure
UK Statistics Family,Office for National Statistics,11/10/2023,EXP - PURCHASE OF GOODS/SERVICES - DATA ACQUISITION,Data Architecture,Sandhill,281172," 56,896.13 ",Software Licenses,SME,Programme Expenditure
UK Statistics Family,Office for National Statistics,11/10/2023,Hosting,Learning And Capability,PeopleFluent Limited,281176," 52,800.00 ",Information Management Services,SME,Programme Expenditure
UK Statistics Family,Office for National Statistics,12/10/2023,IT (Owned) At Cost - Additions,IT Operations,Scc,281251," 690,645.74 ",Computers and Peripherals,Large,Programme Expenditure
UK Statistics Family,Office for National Statistics,12/10/2023,Software Licences At Cost - Additions,IT Operations,Scc,281251," 82,341.94 ",Software Licenses,Large,Programme Expenditure
UK Statistics Family,Office for National Statistics,12/10/2023,"ICT Outsourcing, Maintenance And Support",IT Operations,Scc,281251," 41,526.77 ",Information Management Services,Large,Programme Expenditure
UK Statistics Family,Office for National Statistics,12/10/2023,Exp - Purchase Of Goods/Services - IT Contractual Services,IT Operations,Scc,281251," 39,956.59 ",Information Management Services,Large,Programme Expenditure
UK Statistics Family,Office for National Statistics,12/10/2023,Exp - Purchase Of Goods/Services - Contractors,Security Advisory,Certes Computing Ltd,281256," 17,604.65 ",Information Management Services,SME,Programme Expenditure
UK Statistics Family,Office for National Statistics,12/10/2023,Exp - Purchase Of Goods/Services - Contractors,Data Architecture,Certes Computing Ltd,281256," 20,160.00 ",Information Management Services,SME,Programme Expenditure
UK Statistics Family,Office for National Statistics,12/10/2023,Exp - Purchase Of Goods/Services - Contractors,Data Architecture,Certes Computing Ltd,281256," 22,032.86 ",Information Management Services,SME,Programme Expenditure
UK Statistics Family,Office for National Statistics,12/10/2023,Exp - Purchase Of Goods/Services - Contractors,Testing,LA FOSSE ASSOCIATES LIMITED,281262," 10,920.00 ",Information Management Services,Large,Programme Expenditure
UK Statistics Family,Office for National Statistics,12/10/2023,Exp - Purchase Of Goods/Services - Contractors,Consultancy Management,LA FOSSE ASSOCIATES LIMITED,281262," 8,640.00 ",Information Management Services,Large,Programme Expenditure
UK Statistics Family,Office for National Statistics,12/10/2023,Exp - Purchase Of Goods/Services - Contractors,INTEGRATED DATA STRATEGY AND DELIVERY,LA FOSSE ASSOCIATES LIMITED,281262, 720.00 ,Information Management Services,Large,Programme Expenditure
UK Statistics Family,Office for National Statistics,12/10/2023,Exp - Purchase Of Goods/Services - Contractors,Data Architecture,LA FOSSE ASSOCIATES LIMITED,281262," 5,760.00 ",Information Management Services,Large,Programme Expenditure
UK Statistics Family,Office for National Statistics,12/10/2023,Exp - Purchase Of Goods/Services - Contractors,Data Architecture,LA FOSSE ASSOCIATES LIMITED,281262," 15,840.00 ",Information Management Services,Large,Programme Expenditure
UK Statistics Family,Office for National Statistics,12/10/2023,Exp - Purchase Of Goods/Services - Contractors,Digital Delivery,LA FOSSE ASSOCIATES LIMITED,281262," 13,680.00 ",Information Management Services,Large,Programme Expenditure
UK Statistics Family,Office for National Statistics,12/10/2023,Exp - Purchase Of Goods/Services - Contractors,Data Architecture,SmartSourcing Ltd,281263," 21,820.80 ",Information Management Services,SME,Programme Expenditure
UK Statistics Family,Office for National Statistics,12/10/2023,Exp - Purchase Of Goods/Services - Contractors,Data Architecture,SmartSourcing Ltd,281263," 21,581.57 ",Information Management Services,SME,Programme Expenditure
UK Statistics Family,Office for National Statistics,12/10/2023,Exp - Purchase Of Goods/Services - Training & Development - Professional Membership Fees,MSA Central,HMRC.,281265," 43,788.00 ",Training and Educational Services,Large,Programme Expenditure
UK Statistics Family,Office for National Statistics,13/10/2023,"ICT Outsourcing, Maintenance And Support",Interviewer Support,Totalmobile Ltd,281364," 2,698.44 ",Information Management Services,SME,Programme Expenditure
UK Statistics Family,Office for National Statistics,13/10/2023,"ICT Outsourcing, Maintenance And Support",Interviewer Support,Totalmobile Ltd,281364," 127,170.00 ",Information Management Services,SME,Programme Expenditure
UK Statistics Family,Office for National Statistics,13/10/2023,Exp - Purchase Of Goods/Services - IT Contractual Services,Digital Delivery,ANDigital Limited,281369," 86,400.00 ",Information Management Services,large,Programme Expenditure
UK Statistics Family,Office for National Statistics,13/10/2023,Exp - Purchase Of Goods/Services - Contractors,Testing,La International,281374," 4,325.22 ",Information Management Services,SME,Programme Expenditure
UK Statistics Family,Office for National Statistics,13/10/2023,Exp - Purchase Of Goods/Services - Contractors,Data Architecture,La International,281374," 7,962.36 ",Information Management Services,SME,Programme Expenditure
UK Statistics Family,Office for National Statistics,13/10/2023,Exp - Purchase Of Goods/Services - Contractors,Data Architecture,La International,281374," 3,982.38 ",Information Management Services,SME,Programme Expenditure
UK Statistics Family,Office for National Statistics,13/10/2023,Exp - Purchase Of Goods/Services - Contractors,Strategy And Architecture,La International,281374," 18,482.40 ",Information Management Services,SME,Programme Expenditure
UK Statistics Family,Office for National Statistics,13/10/2023,Exp - Purchase Of Goods/Services - Contractors,IT Applications,La International,281374," 6,413.65 ",Information Management Services,SME,Programme Expenditure
UK Statistics Family,Office for National Statistics,16/10/2023,Capital Major Works >25K,Property Newport,Vinci Construction UK Limited,281464," 148,807.58 ",Facilities Mangement Services,Large,Programme Expenditure
UK Statistics Family,Office for National Statistics,17/10/2023,Exp - Purchase Of Goods/Services - Contractors,Data Capability,Parity Resources Limited,281638," 8,710.50 ",Information Management Services,Large,Programme Expenditure
UK Statistics Family,Office for National Statistics,17/10/2023,Exp - Purchase Of Goods/Services - Contractors,Security Advisory,Parity Resources Limited,281638," 35,546.10 ",Information Management Services,Large,Programme Expenditure
UK Statistics Family,Office for National Statistics,17/10/2023,Exp - Purchase Of Goods/Services - Contractors,Data Architecture,Parity Resources Limited,281638," 4,810.50 ",Information Management Services,Large,Programme Expenditure
UK Statistics Family,Office for National Statistics,17/10/2023,Exp - Purchase Of Goods/Services - Contractors,CDIO UNGP,Parity Resources Limited,281638," 4,600.50 ",Information Management Services,Large,Programme Expenditure
UK Statistics Family,Office for National Statistics,17/10/2023,Exp - Purchase Of Goods/Services - Contractors,IT Applications,Parity Resources Limited,281638," 3,900.00 ",Information Management Services,Large,Programme Expenditure
UK Statistics Family,Office for National Statistics,17/10/2023,Rent Payable,Property Darlington,Government Property Agency (GPA),281641," 83,569.37 ",Property Lease,Large,Programme Expenditure
UK Statistics Family,Office for National Statistics,17/10/2023,Rent Payable,Property Newport,Government Property Agency (GPA),281641," 387,081.00 ",Property Lease,Large,Programme Expenditure
UK Statistics Family,Office for National Statistics,17/10/2023,Capital Major Works >25K,Property Titchfield,Vinci Construction UK Limited,281642," 98,066.05 ",Facilities Mangement Services,Large,Programme Expenditure
UK Statistics Family,Office for National Statistics,17/10/2023,Hosting,IT Operations,ITS Computing Limited,281644," 48,400.00 ",Information Management Services,Large,Programme Expenditure
UK Statistics Family,Office for National Statistics,18/10/2023,Exp - Purchase Of Goods/Services - IT Contractual Services,Digital Delivery,ANDigital Limited,281788," 45,864.00 ",Information Management Services,large,Programme Expenditure
UK Statistics Family,Office for National Statistics,18/10/2023,Surveys,ECONOMIC CHANGE,Chamber of Shipping Ltd,281794," 30,504.00 ",Data Acquisition,SME,Programme Expenditure
UK Statistics Family,Office for National Statistics,18/10/2023,Plant & Machinery At Cost - Additions,Survey Processing Centre,Xerox UK Limited,281798," 134,859.60 ",Equipment Lease,Large,Programme Expenditure
UK Statistics Family,Office for National Statistics,18/10/2023,Exp - Purchase Of Goods/Services - IT Contractual Services,PARTNERSHIP DEVELOPMENT,Diegesis Limited,281799," 3,211.12 ",Information Management Services,Large,Programme Expenditure
UK Statistics Family,Office for National Statistics,18/10/2023,Exp - Purchase Of Goods/Services - IT Contractual Services,IT Applications,Diegesis Limited,281799," 24,408.11 ",Information Management Services,Large,Programme Expenditure
UK Statistics Family,Office for National Statistics,19/10/2023,Telecoms,IT Operations,Cdw Limited,281930," 35,536.80 ",Information Management Services,Large,Programme Expenditure
UK Statistics Family,Office for National Statistics,19/10/2023,Exp - Purchase Of Goods/Services - Incentive Payments,Interviewer Support,Banner Group Ltd,281932," 46,438.51 ",Survey Response Incentive Items,SME,Programme Expenditure
UK Statistics Family,Office for National Statistics,19/10/2023,EXP - PURCHASE OF GOODS/SERVICES -  NON IT CONTRACTUAL PAYMENTS,Crime Statistics,Edinburgh Innovations,281934," 25,230.00 ",Development and Feasibility Services,SME,Programme Expenditure
UK Statistics Family,Office for National Statistics,19/10/2023,Exp - Purchase Of Goods/Services - Other Facilities Costs,PROPERTY LONDON 2MS,Government Property Agency (GPA),281936," 55,838.04 ",Property Lease,Large,Programme Expenditure
UK Statistics Family,Office for National Statistics,20/10/2023,Surveys,Crime Statistics,Kantar Public UK Ltd.,282022," 42,448.67 ",Statistical Services,SME,Programme Expenditure
UK Statistics Family,Office for National Statistics,20/10/2023,Surveys,Prices Division,Kantar Public UK Ltd.,282022," 4,343.33 ",Statistical Services,SME,Programme Expenditure
UK Statistics Family,Office for National Statistics,20/10/2023,Rent Payable,Property Titchfield,Government Property Agency (GPA),282030," 354,787.50 ",Property Lease,Large,Programme Expenditure
UK Statistics Family,Office for National Statistics,24/10/2023,Exp - Purchase Of Goods/Services - IT Contractual Services,PARTNERSHIP DEVELOPMENT,CGI IT UK Limited,282354," 365,272.00 ",Information Management Services,Large,Programme Expenditure
UK Statistics Family,Office for National Statistics,24/10/2023,Travel And Subsistence,PARTNERSHIP DEVELOPMENT,CGI IT UK Limited,282354, 110.36 ,Information Management Services,Large,Programme Expenditure
UK Statistics Family,Office for National Statistics,25/10/2023,Capital Major Works >25K,Property Services,Vinci Construction UK Limited,282482," 4,800.00 ",Facilities Mangement Services,Large,Programme Expenditure
UK Statistics Family,Office for National Statistics,25/10/2023,Major Works Over 25K,Property Newport,Vinci Construction UK Limited,282482," 39,899.44 ",Facilities Mangement Services,Large,Programme Expenditure
UK Statistics Family,Office for National Statistics,25/10/2023,Exp - Purchase Of Goods/Services - Contractors,Consultancy Management,Malikshaw Interim & Executive,282493," 14,439.10 ",Information Management Services,SME,Programme Expenditure
UK Statistics Family,Office for National Statistics,25/10/2023,Exp - Purchase Of Goods/Services - Contractors,DATA ENGINEERING OPERATIONS AND DELIVERY,Malikshaw Interim & Executive,282493," 18,072.00 ",Information Management Services,SME,Programme Expenditure
UK Statistics Family,Office for National Statistics,25/10/2023,Surveys,Crime Statistics,Kantar Public UK Ltd.,282494," 496,980.00 ",Statistical Services,SME,Programme Expenditure
UK Statistics Family,Office for National Statistics,25/10/2023,Prepayments - Titchfield Postage Meter,Print & Post,Pitney Bowes Ltd,282506, 33.89 ,Postage,Large,Programme Expenditure
UK Statistics Family,Office for National Statistics,25/10/2023,Postage,REPROGRAPHICS,Pitney Bowes Ltd,282506," 43,238.98 ",Postage,Large,Programme Expenditure
UK Statistics Family,Office for National Statistics,25/10/2023,Exp - Purchase Of Goods/Services - IT Contractual Services,Policy Secretariat,Diligent Boardbooks Limited,282507," 30,960.00 ",Information Management Services,Large,Programme Expenditure
UK Statistics Family,Office for National Statistics,26/10/2023,FM Contract Payments,Vinci Payments,Vinci Construction UK Limited,282588," 380,195.36 ",Facilities Mangement Services,Large,Programme Expenditure
UK Statistics Family,Office for National Statistics,26/10/2023,Telecoms,IT Operations,Bt Global Services,282590," 33,948.36 ",Telecommunications,Large,Programme Expenditure
UK Statistics Family,Office for National Statistics,26/10/2023,Exp - Purchase Of Goods/Services - IT Contractual Services,CLOUD ARCHITECTURE,CTS (Cloud Technology Solutions Ltd),282598," 50,184.00 ",Information Management Services,Large,Programme Expenditure
UK Statistics Family,Office for National Statistics,26/10/2023,Other Goods And Services,FAST STREAM RECHARGES - CABINET OFFICE,Cabinet Office,282603," 92,809.00 ",Fast Stream Services,Large,Programme Expenditure
UK Statistics Family,Office for National Statistics,27/10/2023,Travel And Subsistence,CWT Trainline,Corporate Travel Management ,282720," 36,487.25 ",Travel and Accommodation,SME,Programme Expenditure
UK Statistics Family,Office for National Statistics,27/10/2023,Other Professional Services,Policy Secretariat,Government Legal Department,282724," 36,641.94 ",Legal Services,Large,Programme Expenditure
UK Statistics Family,Office for National Statistics,27/10/2023,Exp - Purchase Of Goods/Services - IT Contractual Services,Digital Delivery,ANDigital Limited,282729," 95,964.00 ",Information Management Services,large,Programme Expenditure
UK Statistics Family,Office for National Statistics,03/10/2023,Capital Major Works >25K,Property Newport,Vinci Construction UK Limited,30004323," 217,616.94 ",Facilities Mangement Services,Large,Programme Expenditure
UK Statistics Family,Office for National Statistics,03/10/2023,FM Contract Payments,Vinci Payments,Vinci Construction UK Limited,30004323," 352,353.33 ",Facilities Mangement Services,Large,Programme Expenditure
UK Statistics Family,Office for National Statistics,19/10/2023,Electricity,Property Newport,Edf Energy,30004345," 32,172.82 ",Utility Costs,Large,Programme Expenditure
UK Statistics Family,Office for National Statistics,24/10/2023,Electricity,Property Titchfield,Edf Energy,30004348," 26,043.96 ",Utility Costs,Large,Programme Expenditure
UK Statistics Family,Office for National Statistics,26/10/2023,Exp - Purchase Of Goods/Services - IT Contractual Services,IT Applications,Diegesis Limited,30004351," 161,220.00 ",Information Management Services,Large,Programme Expenditure
,,,,,,,"8,950,053.13",,,
